fUSD/lending_fUSD_20260219
["ID","MTS","AMOUNT","RATE_DAILY","PERIOD"]
[405962518,1771460119870,-1077.32219723,0.00039999,31]
[405962519,1771460119937,-1077.32219723,0.00039999,31]
[405962520,1771460120005,-1077.32219723,0.00039999,31]
[405962521,1771460120071,-1077.32219723,0.00039999,31]
[405962522,1771460120140,-1077.32219723,0.00039999,31]
[405962523,1771460120213,-890.176419,0.0004322,120]
[405962524,1771460120283,-227.863627,0.0004322,120]
[405962525,1771460120350,-227.863627,0.0004322,120]
[405962526,1771460120414,-227.863627,0.0004322,120]
[405962527,1771460120479,-227.863627,0.0004322,120]
[405962528,1771460120580,-890.176419,0.00044347,120]
[405962529,1771460120649,-890.176419,0.00044347,120]
[405962530,1771460120718,-890.176419,0.00044347,120]
[405962531,1771460120782,-890.176419,0.00044347,120]
[405962532,1771460120847,-227.863627,0.00044347,120]
[405962533,1771460120911,-227.863627,0.00044347,120]
[405962534,1771460120978,-227.863627,0.00044347,120]
[405962535,1771460121041,-227.863627,0.00044347,120]
[405962536,1771460121105,-227.863627,0.00044347,120]
[405962537,1771460121176,-227.863627,0.00044347,120]
[405962538,1771460121242,-227.863627,0.00044347,120]
[405962539,1771460121308,-227.863627,0.00044347,120]
[405962540,1771460121377,-227.863627,0.00044347,120]
[405962541,1771460121444,-227.863627,0.00044347,120]
[405962542,1771460121513,-227.863627,0.00044347,120]
[405962543,1771460121580,-227.863619,0.00044347,120]
[405962544,1771460121668,-716.76,0.000468,120]
[405962545,1771460121737,-716.76,0.00047208,120]
[405962546,1771460121802,-716.76,0.00047616,120]
[405962547,1771460121866,-150.0,0.00047625,30]
[405962548,1771460121928,-749.79098249,0.00047625,30]
[405962549,1771460121991,-150.0,0.00047625,30]
[405962550,1771460122054,-1013.66580373,0.00047625,30]
[405962551,1771460122120,-716.76,0.00048024,120]
[405962552,1771460122184,-300.190814,0.00048212,120]
[405962553,1771460122248,-716.76,0.00048432,120]
[405962554,1771460122312,-716.76,0.0004884,120]
[405962555,1771460122377,-716.76,0.00049248,120]
[405962556,1771460122439,-208.74798646,0.00049283,30]
[405962557,1771460122503,-716.76,0.00049656,120]
[405962558,1771460122567,-250.0,0.0005,120]
[405962559,1771460122630,-4908.95583252,0.0005,120]
[405962560,1771460122694,-173.62051493,0.0005,30]
[405962561,1771460122758,-716.76,0.00050064,120]
[405962562,1771460122821,-716.76,0.00050472,120]
[405962563,1771460122882,-500.0,0.00050749,70]
[405962564,1771460122942,-500.0,0.00050749,70]
[405962565,1771460123005,-500.0,0.00050749,70]
[405962566,1771460123066,-500.0,0.00050749,70]
[405962567,1771460123128,-500.0,0.00050749,70]
[405962568,1771460123190,-500.0,0.00050749,70]
[405962569,1771460123254,-500.0,0.00050749,70]
[405962570,1771460123318,-500.0,0.00050749,70]
[405962571,1771460123385,-533.41240175,0.00050749,70]
[405962572,1771460123450,-500.0,0.00050749,70]
[405962573,1771460123516,-500.0,0.00050749,70]
[405962574,1771460123579,-500.0,0.00050749,70]
[405962575,1771460123646,-500.0,0.00050749,70]
[405962576,1771460123714,-500.0,0.00050749,70]
[405962577,1771460123780,-500.0,0.00050749,70]
[405962578,1771460123844,-500.0,0.00050749,70]
[405962579,1771460123906,-500.0,0.00050749,70]
[405962580,1771460123971,-500.0,0.00050749,70]
[405962581,1771460124035,-500.0,0.00050749,70]
[405962582,1771460124112,-500.0,0.00050749,70]
[405962583,1771460124174,-500.0,0.00050749,70]
[405962584,1771460124236,-500.0,0.00050749,70]
[405962585,1771460124300,-500.0,0.00050749,70]
[405962586,1771460124362,-500.0,0.00050749,70]
[405962587,1771460124428,-500.0,0.00050749,70]
[405962588,1771460124494,-500.0,0.00050749,70]
[405962589,1771460124558,-500.0,0.00050749,70]
[405962590,1771460124624,-500.0,0.00050749,70]
[405962591,1771460124688,-500.0,0.00050749,70]
[405962592,1771460124757,-500.0,0.00050749,70]
[405962593,1771460124822,-431.57774722,0.00050749,70]
[405962594,1771460124884,-500.0,0.00050749,70]
[405962595,1771460124948,-500.0,0.00050749,70]
[405962596,1771460125013,-500.0,0.00050749,70]
[405962597,1771460125077,-500.0,0.00050749,70]
[405962598,1771460125142,-500.0,0.00050749,70]
[405962599,1771460125212,-500.0,0.00050749,70]
[405962600,1771460125278,-500.0,0.00050749,70]
[405962601,1771460125512,-617.96587424,0.00050749,70]
[405962602,1771460125583,-662.0,0.0005085,120]
[405962603,1771460125649,-716.76,0.0005088,120]
[405962604,1771460125713,-373.29504273,0.000511,120]
[405962605,1771460125777,-841.0,0.00051109,120]
[405962606,1771460125838,-152.11127002,0.000512,30]
[405962607,1771460125899,-5000.0,0.00051249,75]
[405962608,1771460125962,-160.0,0.00051249,75]
[405962609,1771460126025,-500.0,0.00051249,75]
[405962610,1771460126088,-279.58737259,0.00051249,75]
[405962611,1771460126150,-250.0,0.00051249,75]
[405962612,1771460126213,-200.0,0.00051249,75]
[405962613,1771460126276,-5000.0,0.00051249,75]
[405962614,1771460126344,-518.5,0.00051249,75]
[405962615,1771460126413,-500.0,0.00051249,75]
[405962616,1771460126480,-250.0,0.00051249,75]
[405962617,1771460126549,-250.0,0.00051249,75]
[405962618,1771460126617,-200.0,0.00051249,75]
[405962619,1771460126687,-5000.0,0.00051249,75]
[405962620,1771460126755,-537.6845,0.00051249,75]
[405962621,1771460126821,-250.0,0.00051249,75]
[405962622,1771460126888,-250.0,0.00051249,75]
[405962623,1771460126958,-5000.0,0.00051249,75]
[405962624,1771460127021,-557.5788265,0.00051249,75]
[405962625,1771460127088,-200.0,0.00051249,75]
[405962626,1771460127154,-254.46959433,0.00051249,75]
[405962627,1771460127218,-250.0,0.00051249,75]
[405962628,1771460127288,-5000.0,0.00051249,75]
[405962629,1771460127356,-578.20924308,0.00051249,75]
[405962630,1771460127424,-200.0,0.00051249,75]
[405962631,1771460127496,-250.0,0.00051249,75]
[405962632,1771460127569,-5000.0,0.00051249,75]
[405962633,1771460127641,-599.60298507,0.00051249,75]
[405962634,1771460127718,-500.0,0.00051249,75]
[405962635,1771460127789,-200.0,0.00051249,75]
[405962636,1771460127856,-250.0,0.00051249,75]
[405962637,1771460127925,-5000.0,0.00051249,75]
[405962638,1771460127991,-250.0,0.00051249,75]
[405962639,1771460128058,-621.78829552,0.00051249,75]
[405962640,1771460128126,-518.5,0.00051249,75]
[405962641,1771460128190,-200.0,0.00051249,75]
[405962642,1771460128255,-256.29411924,0.00051249,75]
[405962643,1771460128320,-250.0,0.00051249,75]
[405962644,1771460128387,-250.0,0.00051249,75]
[405962645,1771460128453,-848.44958969,0.00051249,75]
[405962646,1771460128522,-537.6845,0.00051249,75]
[405962647,1771460128596,-250.0,0.00051249,75]
[405962648,1771460128666,-200.0,0.00051249,75]
[405962649,1771460128732,-644.79446246,0.00051249,75]
[405962650,1771460128802,-557.5788265,0.00051249,75]
[405962651,1771460128867,-250.0,0.00051249,75]
[405962652,1771460128929,-151.0,0.00051249,75]
[405962653,1771460128993,-200.0,0.00051249,75]
[405962654,1771460129058,-668.65185757,0.00051249,75]
[405962655,1771460129124,-250.0,0.00051249,75]
[405962656,1771460129190,-578.20924308,0.00051249,75]
[405962657,1771460129253,-250.0,0.00051249,75]
[405962658,1771460129320,-156.587,0.00051249,75]
[405962659,1771460129387,-200.0,0.00051249,75]
[405962660,1771460129457,-250.0,0.00051249,75]
[405962661,1771460129524,-693.3919763,0.00051249,75]
[405962662,1771460129595,-599.60298507,0.00051249,75]
[405962663,1771460129662,-162.380719,0.00051249,75]
[405962664,1771460129733,-250.0,0.00051249,75]
[405962665,1771460129805,-719.04747942,0.00051249,75]
[405962666,1771460129874,-621.78829552,0.00051249,75]
[405962667,1771460129941,-350.0,0.00051249,75]
[405962668,1771460130006,-168.3888056,0.00051249,75]
[405962669,1771460130071,-250.0,0.00051249,75]
[405962670,1771460130137,-745.65223616,0.00051249,75]
[405962671,1771460130205,-268957.91509267,0.0005125,75]
[405962672,1771460130270,-152.11127002,0.0005125,30]
[405962673,1771460130332,-1254.7,0.0005125,120]
[405962674,1771460130398,-200.0,0.0005125,75]
[405962675,1771460130465,-716.76,0.00051287,120]
[405962676,1771460130528,-1209.0,0.00051316,120]
[405962677,1771460130594,-506.0,0.00051366,34]
[405962678,1771460130660,-841.0,0.00051383,120]
[405962679,1771460130730,-1000.0,0.000514,120]
[405962680,1771460130796,-441.0,0.000514,120]
[405962681,1771460130862,-20000.0,0.000514,120]
[405962682,1771460130927,-152.0,0.000514,120]
[405962683,1771460130993,-4360.67901925,0.000515,120]
[405962684,1771460131060,-5000000.0,0.000515,120]
[405962685,1771460131131,-999999.99,0.000515,56]
[405962686,1771460131194,-51500.0,0.000515,34]
[405962687,1771460131258,-5802.34318392,0.000515,120]
[405962688,1771460131327,-1505095.66014302,0.000515,120]
[405962689,1771460141378,-59477.17398539,0.00044347,50]
[405962690,1771460141444,-728.0,0.00044347,30]
[405962691,1771460141529,-150.0,0.00047625,30]
[405962692,1771460141730,-300.190815,0.00048447,120]
[405962693,1771460141795,-161.41194081,0.00049283,30]
[405962694,1771460141853,-1000.0,0.00049421,30]
[405962695,1771460141915,-1000.0,0.0004973,30]
[405962696,1771460141976,-1000.0,0.00049866,30]
[405962697,1771460142039,-1000.0,0.00050949,30]
[405962698,1771460142099,-1000.0,0.00051074,30]
[405962699,1771460142159,-159.0,0.000512,120]
[405962700,1771460142219,-152.0,0.000512,120]
[405962701,1771460142280,-152.0,0.000512,120]
[405962702,1771460142341,-152.0,0.000512,120]
[405962703,1771460142404,-152.0,0.000512,120]
[405962704,1771460142464,-500.0,0.00051249,75]
[405962705,1771460142529,-644.79446246,0.00051249,75]
[405962706,1771460142592,-204.39344828,0.00051249,75]
[405962707,1771460142654,-174.61919141,0.00051249,75]
[405962708,1771460142716,-250.0,0.00051249,75]
[405962709,1771460142777,-500.0,0.00051249,75]
[405962710,1771460142840,-668.65185757,0.00051249,75]
[405962711,1771460142899,-773.2413689,0.00051249,75]
[405962712,1771460142961,-181.08010149,0.00051249,75]
[405962713,1771460143021,-500.0,0.00051249,75]
[405962714,1771460143081,-693.3919763,0.00051249,75]
[405962715,1771460143141,-801.85129955,0.00051249,75]
[405962716,1771460143200,-187.78006525,0.00051249,75]
[405962717,1771460143262,-500.0,0.00051249,75]
[405962718,1771460143328,-719.04747942,0.00051249,75]
[405962719,1771460143393,-194.72792766,0.00051249,75]
[405962720,1771460143462,-745.65223616,0.00051249,75]
[405962721,1771460143533,-831.51979763,0.00051249,75]
[405962722,1771460143602,-201.93286099,0.00051249,75]
[405962723,1771460143674,-773.2413689,0.00051249,75]
[405962724,1771460143745,-209.40437684,0.00051249,75]
[405962725,1771460143816,-801.85129955,0.00051249,75]
[405962726,1771460143882,-217.15233878,0.00051249,75]
[405962727,1771460143947,-831.51979763,0.00051249,75]
[405962728,1771460144012,-225.18697532,0.00051249,75]
[405962729,1771460144077,-500.0,0.00051249,75]
[405962730,1771460144143,-862.28603014,0.00051249,75]
[405962731,1771460144204,-233.51889341,0.00051249,75]
[405962732,1771460144269,-894.19061326,0.00051249,75]
[405962733,1771460144335,-242.15909246,0.00051249,75]
[405962734,1771460144401,-927.27566595,0.00051249,75]
[405962735,1771460144470,-961.58486559,0.00051249,75]
[405962736,1771460144536,-251.11897888,0.00051249,75]
[405962737,1771460144605,-500.0,0.00051249,75]
[405962738,1771460144672,-997.16350561,0.00051249,75]
[405962739,1771460144734,-500.0,0.00051249,75]
[405962740,1771460144796,-260.4103811,0.00051249,75]
[405962741,1771460144858,-500.0,0.00051249,75]
[405962742,1771460144921,-270.0455652,0.00051249,75]
[405962743,1771460144984,-500.0,0.00051249,75]
[405962744,1771460145044,-280.03725112,0.00051249,75]
[405962745,1771460145107,-500.0,0.00051249,75]
[405962746,1771460145173,-290.39862941,0.00051249,75]
[405962747,1771460145236,-500.0,0.00051249,75]
[405962748,1771460145302,-301.1433787,0.00051249,75]
[405962749,1771460145368,-500.0,0.00051249,75]
[405962750,1771460145434,-500.0,0.00051249,75]
[405962751,1771460145499,-500.0,0.00051249,75]
[405962752,1771460145567,-500.0,0.00051249,75]
[405962753,1771460145633,-500.0,0.00051249,75]
[405962754,1771460145698,-5400.0,0.00051249,75]
[405962755,1771460145761,-500.0,0.00051249,75]
[405962756,1771460145826,-3580.4138144,0.00051249,75]
[405962757,1771460145889,-1000.0,0.00051249,75]
[405962758,1771460145951,-500.0,0.00051249,75]
[405962759,1771460146012,-1000.0,0.00051249,75]
[405962760,1771460146075,-500.0,0.00051249,75]
[405962761,1771460146137,-151.0,0.00051249,75]
[405962762,1771460146198,-1000.0,0.00051249,75]
[405962763,1771460146262,-500.0,0.00051249,75]
[405962764,1771460146327,-151.0,0.00051249,75]
[405962765,1771460146392,-1000.0,0.00051249,75]
[405962766,1771460146458,-1000.0,0.00051249,75]
[405962767,1771460146524,-151.0,0.00051249,75]
[405962768,1771460146607,-1000.0,0.00051249,75]
[405962769,1771460146676,-1000.0,0.00051249,75]
[405962770,1771460146742,-3000.0,0.00051249,75]
[405962771,1771460146809,-151.0,0.00051249,75]
[405962772,1771460146876,-250.0,0.00051249,75]
[405962773,1771460146941,-1000.0,0.00051249,75]
[405962774,1771460147005,-1000.0,0.00051249,75]
[405962775,1771460147072,-2901.35132108,0.00051249,75]
[405962776,1771460147139,-151.0,0.00051249,75]
[405962777,1771460147208,-1000.0,0.00051249,75]
[405962778,1771460147275,-1000.0,0.00051249,75]
[405962779,1771460147343,-250.0,0.00051249,75]
[405962780,1771460147408,-1000.0,0.00051249,75]
[405962781,1771460147473,-1000.0,0.00051249,75]
[405962782,1771460147757,-250.0,0.00051249,75]
[405962783,1771460147820,-1000.0,0.00051249,75]
[405962784,1771460147884,-250.0,0.00051249,75]
[405962785,1771460147949,-1000.0,0.00051249,75]
[405962786,1771460148014,-250.0,0.00051249,75]
[405962787,1771460148077,-250.0,0.00051249,75]
[405962788,1771460148140,-1000.0,0.00051249,75]
[405962789,1771460148207,-1000.0,0.00051249,75]
[405962790,1771460148269,-250.0,0.00051249,75]
[405962791,1771460148335,-250.0,0.00051249,75]
[405962792,1771460148401,-1000.0,0.00051249,75]
[405962793,1771460148469,-1000.0,0.00051249,75]
[405962794,1771460148533,-250.0,0.00051249,75]
[405962795,1771460148600,-250.0,0.00051249,75]
[405962796,1771460148671,-1000.0,0.00051249,75]
[405962797,1771460148741,-1000.0,0.00051249,75]
[405962798,1771460148809,-250.0,0.00051249,75]
[405962799,1771460148874,-520.0,0.00051249,75]
[405962800,1771460148940,-250.0,0.00051249,75]
[405962801,1771460149003,-1000.0,0.00051249,75]
[405962802,1771460149070,-250.0,0.00051249,75]
[405962803,1771460149135,-539.24,0.00051249,75]
[405962804,1771460149199,-250.0,0.00051249,75]
[405962805,1771460149265,-1000.0,0.00051249,75]
[405962806,1771460149337,-559.19188,0.00051249,75]
[405962807,1771460149402,-250.0,0.00051249,75]
[405962808,1771460149467,-1000.0,0.00051249,75]
[405962809,1771460149535,-1164.0,0.00051316,120]
[405962810,1771460149603,-3494904.33985698,0.000515,120]
[405962811,1771460149674,-4365240.31330542,0.000515,120]
[405962812,1771460154421,-3496.78443058,0.00047625,30]
[405962813,1771460154488,-300.190815,0.00048687,120]
[405962814,1771460154555,-150.0,0.00049283,30]
[405962815,1771460154624,-320.74051982,0.00050999,55]
[405962816,1771460154693,-159.0,0.000512,120]
[405962817,1771460154760,-579.88197956,0.00051249,75]
[405962818,1771460154826,-250.0,0.00051249,75]
[405962819,1771460154891,-1000.0,0.00051249,75]
[405962820,1771460154956,-601.3376128,0.00051249,75]
[405962821,1771460155018,-250.0,0.00051249,75]
[405962822,1771460155082,-1000.0,0.00051249,75]
[405962823,1771460155147,-623.58710448,0.00051249,75]
[405962824,1771460155215,-1000.0,0.00051249,75]
[405962825,1771460155280,-500.0,0.00051249,75]
[405962826,1771460155342,-646.65982734,0.00051249,75]
[405962827,1771460155409,-1000.0,0.00051249,75]
[405962828,1771460155475,-500.0,0.00051249,75]
[405962829,1771460155539,-670.58624095,0.00051249,75]
[405962830,1771460155604,-1000.0,0.00051249,75]
[405962831,1771460155669,-500.0,0.00051249,75]
[405962832,1771460155733,-695.39793187,0.00051249,75]
[405962833,1771460155799,-500.0,0.00051249,75]
[405962834,1771460155863,-721.12765535,0.00051249,75]
[405962835,1771460155927,-500.0,0.00051249,75]
[405962836,1771460155990,-747.8093786,0.00051249,75]
[405962837,1771460156059,-500.0,0.00051249,75]
[405962838,1771460156143,-775.47832561,0.00051249,75]
[405962839,1771460156227,-804.17102365,0.00051249,75]
[405962840,1771460156307,-500.0,0.00051249,75]
[405962841,1771460156392,-833.92535153,0.00051249,75]
[405962842,1771460156474,-500.0,0.00051249,75]
[405962843,1771460156559,-864.78058953,0.00051249,75]
[405962844,1771460156639,-500.0,0.00051249,75]
[405962845,1771460156721,-896.77747135,0.00051249,75]
[405962846,1771460156798,-500.0,0.00051249,75]
[405962847,1771460156874,-754.72687284,0.00051249,75]
[405962848,1771460156950,-500.0,0.00051249,75]
[405962849,1771460157021,-500.0,0.00051249,75]
[405962850,1771460157099,-500.0,0.00051249,75]
[405962851,1771460157174,-500.0,0.00051249,75]
[405962852,1771460157248,-500.0,0.00051249,75]
[405962853,1771460157320,-293.37000728,0.00051249,75]
[405962854,1771460157396,-500.0,0.00051249,75]
[405962855,1771460157469,-151.0,0.00051249,75]
[405962856,1771460157547,-500.0,0.00051249,75]
[405962857,1771460157614,-156.587,0.00051249,75]
[405962858,1771460157679,-500.0,0.00051249,75]
[405962859,1771460157741,-1338.0,0.00051316,120]
[405962860,1771460157802,-617.0,0.00051316,120]
[405962861,1771460157866,-634759.68669458,0.000515,120]
[405962862,1771460157928,-151.0,0.000515,30]
[405962863,1771460157990,-10252.2525,0.00051506,120]
[405962864,1771460158054,-2000.0,0.0005153,78]
[405962865,1771460158117,-162.0,0.00051538,120]
[405962866,1771460158182,-2000.0,0.0005156,81]
[405962867,1771460158246,-193.0,0.000516,120]
[405962868,1771460158305,-11598.57266926,0.00051648,120]
[405962869,1771460158365,-841.0,0.00051657,120]
[405962870,1771460158429,-716.76,0.00051695,120]
[405962871,1771460158491,-1291.0,0.00051793,120]
[405962872,1771460158554,-50000.0,0.000518,120]
[405962873,1771460158618,-636.98333025,0.000518,120]
[405962874,1771460158682,-1950162.66,0.0005186,120]
[405962875,1771460158746,-5000.0,0.000519,120]
[405962876,1771460158809,-32038.45,0.000519,120]
[405962877,1771460158869,-841.0,0.00051931,120]
[405962878,1771460159300,-1145.0,0.0005198,110]
[405962879,1771460159386,-1516230.0,0.00052,66]
[405962880,1771460159454,-700.0,0.00052,120]
[405962881,1771460159521,-13242.0,0.00052,120]
[405962882,1771460159587,-1450.0,0.00052,30]
[405962883,1771460159653,-305.51702388,0.00052,30]
[405962884,1771460159720,-303.13497963,0.00052,120]
[405962885,1771460159787,-300.0,0.00052,120]
[405962886,1771460159856,-150.0,0.00052,120]
[405962887,1771460159924,-1002.2925294,0.00052,120]
[405962888,1771460159988,-150.0,0.00052,120]
[405962889,1771460160055,-814.202452,0.00052,120]
[405962890,1771460160123,-13125.79,0.00052,120]
[405962891,1771460160198,-1000000.0,0.00052,120]
[405962892,1771460160269,-76712.74974945,0.00052,60]
[405962893,1771460160338,-2834.61428637,0.00052,120]
[405962894,1771460160406,-1025.0,0.00052,120]
[405962895,1771460160474,-1183.2092,0.00052,120]
[405962896,1771460160541,-1249.8814,0.00052,100]
[405962897,1771460160609,-558.74450494,0.00052,120]
[405962898,1771460160679,-916.36662679,0.00052,120]
[405962899,1771460160747,-754.87881223,0.00052,120]
[405962900,1771460160811,-2269.00333413,0.00052,30]
[405962901,1771460160874,-1629.40658828,0.00052,99]
[405962902,1771460160937,-2827.07818092,0.00052,120]
[405962903,1771460160998,-50088.0,0.00052,120]
[405962904,1771460161060,-152.0,0.00052,120]
[405962905,1771460161124,-101259.31849463,0.00052,120]
[405962906,1771460161190,-12000.0,0.00052,40]
[405962907,1771460161254,-10030.0,0.00052,35]
[405962908,1771460161316,-1000.0,0.00052054,120]
[405962909,1771460161379,-164.29,0.00052055,120]
[405962910,1771460161444,-5000.0,0.00052055,120]
[405962911,1771460161508,-193.0,0.000521,120]
[405962912,1771460161575,-716.76,0.00052103,120]
[405962913,1771460161641,-1241.0,0.00052111,120]
[405962914,1771460161709,-4000.0,0.000522,120]
[405962915,1771460161779,-841.0,0.00052204,120]
[405962916,1771460161847,-506.0,0.0005232,34]
[405962917,1771460161912,-11716.86,0.00052328,120]
[405962918,1771460161977,-1105.0,0.00052395,30]
[405962919,1771460162039,-1105.0,0.00052395,30]
[405962920,1771460162098,-1105.0,0.00052395,30]
[405962921,1771460162163,-2000.0,0.0005246,72]
[405962922,1771460162229,-841.0,0.00052478,120]
[405962923,1771460162291,-43211.95596223,0.000525,120]
[405962924,1771460162356,-12635.71165518,0.000525,120]
[405962925,1771460162421,-3873.42206293,0.000525,120]
[405962926,1771460162487,-15999.99999901,0.000525,120]
[405962927,1771460162560,-1000000.0,0.000525,120]
[405962928,1771460162635,-726.47591074,0.000525,120]
[405962929,1771460162708,-152.0,0.000525,120]
[405962930,1771460162775,-716.76,0.00052511,120]
[405962931,1771460162838,-1181.31,0.00052603,120]
[405962932,1771460162902,-699.0,0.00052658,120]
[405962933,1771460162964,-15304.81,0.0005268,120]
[405962934,1771460163027,-2457.0,0.000527,120]
[405962935,1771460163089,-193.0,0.000527,120]
[405962936,1771460163151,-841.0,0.00052752,120]
[405962937,1771460163212,-685.13956597,0.000528,120]
[405962938,1771460163276,-50000.0,0.000528,90]
[405962939,1771460163345,-393376.0,0.000528,60]
[405962940,1771460163411,-538.98,0.00052866,30]
[405962941,1771460163477,-877121.05134906,0.00052871,30]
[405962942,1771460174290,-970.4,0.0004,30]
[405962943,1771460174360,-151.0,0.000415,120]
[405962944,1771460174426,-1377.464674,0.000415,120]
[405962945,1771460174491,-1377.464674,0.000415,120]
[405962946,1771460174556,-1377.464674,0.000415,120]
[405962947,1771460174625,-151.0,0.000415,120]
[405962948,1771460174691,-1377.464674,0.000415,120]
[405962949,1771460174795,-151.0,0.00044347,120]
[405962950,1771460174864,-151.0,0.00044347,120]
[405962951,1771460174930,-1377.464674,0.00044347,120]
[405962952,1771460174996,-1377.464674,0.00044347,120]
[405962953,1771460175062,-1377.464674,0.00044347,120]
[405962954,1771460175127,-1377.464674,0.00044347,120]
[405962955,1771460175193,-1377.464674,0.00044347,120]
[405962956,1771460175262,-1377.464674,0.00044347,120]
[405962957,1771460175330,-1377.464674,0.00044347,120]
[405962958,1771460175398,-1377.464674,0.00044347,120]
[405962959,1771460175468,-1377.464674,0.00044347,120]
[405962960,1771460175540,-151.0,0.00044347,120]
[405962961,1771460175616,-1377.464674,0.00044347,120]
[405962962,1771460175693,-151.0,0.00044347,120]
[405962963,1771460175764,-1377.464674,0.00044347,120]
[405962964,1771460175834,-151.0,0.00044347,120]
[405962965,1771460175902,-163.17433,0.00044347,120]
[405962966,1771460175971,-1377.464674,0.00044347,120]
[405962967,1771460176039,-1377.464674,0.00044347,120]
[405962968,1771460176105,-1377.464674,0.00044347,120]
[405962969,1771460176173,-1377.464674,0.00044347,120]
[405962970,1771460176238,-1377.464682,0.00044347,120]
[405962971,1771460176318,-743.0,0.00044347,30]
[405962972,1771460176383,-752.0,0.00044347,30]
[405962973,1771460176457,-970.4,0.00047,30]
[405962974,1771460176524,-150.0,0.00047625,30]
[405962975,1771460176598,-504.19032209,0.00049283,30]
[405962976,1771460176665,-300.190816,0.00050225,120]
[405962977,1771460176732,-162.380719,0.00051249,75]
[405962978,1771460176801,-500.0,0.00051249,75]
[405962979,1771460176864,-168.3888056,0.00051249,75]
[405962980,1771460176927,-500.0,0.00051249,75]
[405962981,1771460176991,-174.61919141,0.00051249,75]
[405962982,1771460177058,-181.08010149,0.00051249,75]
[405962983,1771460177122,-187.78006525,0.00051249,75]
[405962984,1771460177190,-194.72792766,0.00051249,75]
[405962985,1771460177257,-201.93286099,0.00051249,75]
[405962986,1771460177321,-209.40437684,0.00051249,75]
[405962987,1771460177388,-217.15233878,0.00051249,75]
[405962988,1771460177455,-164.04956807,0.00051249,75]
[405962989,1771460177523,-212.17073005,0.00052871,30]
[405962990,1771460177766,-361761.59204102,0.000529,120]
[405962991,1771460177833,-3676.206638,0.000529,120]
[405962992,1771460177897,-350000.0,0.000529,60]
[405962993,1771460177962,-716.76,0.00052919,120]
[405962994,1771460178026,-1000.0,0.00052999,120]
[405962995,1771460178091,-150.0,0.00053,120]
[405962996,1771460178155,-1500.0,0.00053,120]
[405962997,1771460178218,-6649.83,0.00053,120]
[405962998,1771460178282,-1500.0,0.00053,120]
[405962999,1771460178348,-1500.0,0.00053,120]
[405963000,1771460178415,-400.0,0.00053,120]
[405963001,1771460178481,-150.0,0.00053,120]
[405963002,1771460178545,-200.0,0.00053,120]
[405963003,1771460178612,-2745.36582267,0.00053,120]
[405963004,1771460178678,-4420.0,0.00053,120]
[405963005,1771460178745,-237.65122118,0.00053,120]
[405963006,1771460178810,-10000.0,0.00053,120]
[405963007,1771460178872,-900.0,0.00053,120]
[405963008,1771460178938,-51729.97613447,0.00053,120]
[405963009,1771460179003,-4125.29087195,0.00053,120]
[405963010,1771460179066,-456.25592542,0.00053,120]
[405963011,1771460179132,-26727.0,0.00053,120]
[405963012,1771460179204,-1000000.0,0.00053,68]
[405963013,1771460179272,-841.0,0.00053026,120]
[405963014,1771460179338,-152.0,0.000531,120]
[405963015,1771460179404,-13181.4675,0.0005315,120]
[405963016,1771460179469,-478.86865645,0.0005322,120]
[405963017,1771460179536,-506.0,0.00053275,35]